bitfinex/quotes_BTCUSD_20260311
["timestamp","ask_amount","ask_price","bid_price","bid_amount"]
[1773266880798,0.01721982,70745.0,70735.0,0.00164]
[1773266881372,0.00144,70745.0,70735.0,0.00164]
[1773266882074,0.00144,70745.0,70736.0,0.0002]
[1773266882274,0.21179404,70748.0,70736.0,0.0002]
[1773266882610,0.14112045,70747.0,70736.0,0.0002]
[1773266883062,0.07067359,70748.0,70736.0,0.0002]
[1773266883251,0.00144,70749.0,70736.0,0.07088508]
[1773266883451,9.958e-05,70750.0,70739.0,0.04197445]
[1773266883775,9.958e-05,70750.0,70741.0,0.0149909]
[1773266884073,9.958e-05,70750.0,70742.0,0.00144]
[1773266884454,9.958e-05,70750.0,70742.0,0.07211927]
[1773266884795,9.958e-05,70750.0,70743.0,0.00553349]
[1773266885335,9.958e-05,70750.0,70742.0,0.07765276]
[1773266887211,9.958e-05,70750.0,70742.0,0.07765271]
[1773266888315,9.958e-05,70750.0,70742.0,0.00697349]
[1773266888695,9.958e-05,70750.0,70742.0,0.00144]
[1773266890556,0.00031959,70750.0,70742.0,0.00128969]
[1773266895177,0.00031959,70750.0,70742.0,0.07196863]
[1773266895319,0.00031959,70750.0,70742.0,0.00128969]
[1773266898405,0.00031959,70750.0,70742.0,0.07196825]
[1773266898614,0.00031959,70750.0,70743.0,0.00553285]
[1773266899337,0.00031959,70750.0,70742.0,0.07130731]
[1773266904129,0.00031959,70750.0,70742.0,0.00144]
[1773266909069,0.01577982,70756.0,70742.0,0.0878895]
[1773266909279,0.00022001,70758.0,70744.0,0.07067737]
[1773266909485,0.00022001,70758.0,70745.0,0.00065344]
[1773266909887,0.0152427,70757.0,70745.0,0.00065344]
[1773266911333,0.00022001,70757.0,70745.0,0.00065344]
[1773266911633,0.00022001,70757.0,70745.0,0.07132883]
[1773266914240,0.00022001,70757.0,70745.0,0.07146773]
[1773266916954,0.01502269,70756.0,70745.0,0.07146773]
[1773266917169,0.01502269,70756.0,70745.0,0.0001389]
[1773266917355,0.01502269,70756.0,70742.0,0.00239302]
[1773266917356,0.01502269,70754.0,70742.0,0.00173958]
[1773266917554,0.01502269,70752.0,70742.0,0.00173958]
[1773266917823,0.01502269,70752.0,70742.0,0.07241891]
[1773266918381,0.01502269,70752.0,70742.0,0.07097891]
[1773266918547,0.01502269,70752.0,70743.0,0.00144]
[1773266918978,0.01502269,70752.0,70744.0,0.00144]
[1773266919373,0.01502269,70752.0,70742.0,0.00029958]
[1773266919578,0.01502269,70752.0,70743.0,0.00144]
[1773266920386,0.01502269,70752.0,70742.0,0.07097885]
[1773266920733,0.01502269,70752.0,70743.0,0.00144]
[1773266921311,0.01502269,70752.0,70742.0,0.07097885]
[1773266921511,0.01502269,70752.0,70743.0,0.00144]
[1773266922311,0.01502269,70752.0,70742.0,0.07097885]
[1773266922511,0.01502269,70752.0,70743.0,0.00144]
[1773266923347,0.01502269,70752.0,70742.0,0.07097885]
[1773266923683,0.01502269,70752.0,70743.0,0.00144]
[1773266923876,0.01502269,70752.0,70742.0,0.07097885]
[1773266924044,0.01502269,70752.0,70743.0,0.00144]
[1773266924851,0.01502269,70752.0,70742.0,0.07097885]
[1773266925029,0.01502269,70752.0,70743.0,0.00144]
[1773266925431,0.0157888,70751.0,70739.0,0.07081422]
[1773266925810,0.0157888,70750.0,70739.0,0.0001319]
[1773266927143,0.0157888,70750.0,70739.0,0.07081412]
[1773266928765,0.0157888,70750.0,70743.0,0.0002]
[1773266930465,0.01510572,70750.0,70743.0,0.0002]
[1773266931986,9.959e-05,70751.0,70743.0,0.0002]
[1773266934271,0.01510572,70750.0,70743.0,0.0002]
[1773266936019,0.01510572,70749.0,70743.0,0.0002]
[1773266937868,0.0198,70743.0,70739.0,0.0001319]
[1773266943513,0.03490572,70743.0,70739.0,0.0001319]
[1773266943916,0.0198,70743.0,70739.0,0.0001319]
[1773266944828,0.01510572,70742.0,70735.0,0.0002]
[1773266945034,0.01510572,70742.0,70728.0,0.0002]
[1773266945238,0.09047921,70743.0,70723.0,0.0706975]
[1773266945239,0.04197535,70740.0,70723.0,0.0706975]
[1773266945431,0.01510572,70737.0,70721.0,0.00144]
[1773266945585,0.01510572,70735.0,70721.0,0.00144]
[1773266946456,0.01510572,70735.0,70724.0,0.0002465]
[1773266948029,0.01510572,70735.0,70724.0,0.07094377]
[1773266948852,0.01510572,70735.0,70724.0,0.0002465]
[1773266949189,0.01510572,70735.0,70724.0,0.07094344]
[1773266950368,0.01510572,70735.0,70724.0,0.0002465]
[1773266952470,0.01510572,70735.0,70724.0,0.0016865]
[1773266953358,0.01510572,70735.0,70724.0,0.0002465]
[1773266953536,0.01510572,70735.0,70724.0,0.0016865]
[1773266953740,0.01510572,70735.0,70724.0,0.0002465]
[1773266954068,0.01510572,70735.0,70721.0,0.001602]
[1773266954069,0.01510572,70733.0,70721.0,0.001602]
[1773266956152,0.07068936,70732.0,70721.0,0.001602]
[1773266956355,0.01510572,70731.0,70721.0,0.001602]
[1773266957255,0.01510572,70731.0,70721.0,0.001802]
[1773266958202,0.08579614,70731.0,70721.0,0.001802]
[1773266958412,0.01510572,70730.0,70721.0,0.0002]
[1773266958637,0.01510572,70730.0,70716.0,0.00055343]
[1773266958835,0.07069042,70731.0,70713.0,0.0002]
[1773266958836,0.01510572,70722.0,70713.0,0.0002]
[1773266960052,0.01510572,70722.0,70713.0,0.00030986]
[1773266966405,0.00553285,70722.0,70713.0,0.00030986]
[1773266966657,0.01494711,70721.0,70713.0,0.00030986]
[1773266968098,0.01494711,70720.0,70713.0,0.00030986]
[1773266968297,0.02047996,70720.0,70713.0,0.00030986]
[1773266968525,0.01769014,70713.0,70709.0,0.0002]
[1773266968700,0.0178013,70713.0,70709.0,0.0002]
[1773266971961,0.0178013,70713.0,70710.0,0.00144]
[1773266972260,0.0178013,70713.0,70712.0,2.557e-05]
[1773266972261,0.03274841,70713.0,70712.0,2.557e-05]
[1773266973419,0.03274841,70713.0,70712.0,0.00022557]
[1773266973864,0.03274841,70713.0,70712.0,1e-08]
[1773266974580,0.10345676,70713.0,70712.0,1e-08]
[1773266974965,0.03274841,70713.0,70712.0,1e-08]
[1773266976622,0.10345676,70713.0,70712.0,1e-08]
[1773266977886,0.10898961,70713.0,70712.0,1e-08]
[1773266985543,0.03828126,70713.0,70712.0,1e-08]
[1773266986489,0.0178013,70713.0,70712.0,1e-08]
[1773266986692,0.0178013,70713.0,70706.0,0.0002]
[1773266993086,0.01802131,70713.0,70706.0,0.0002]
[1773266996549,0.00022001,70721.0,70708.0,0.0143017]
[1773266996725,0.00022001,70721.0,70710.0,0.0143017]
[1773266997761,0.00022001,70721.0,70710.0,0.08501266]
[1773266999969,0.04200526,70720.0,70709.0,0.00144]
[1773267000176,0.01405259,70718.0,70706.0,0.0002]
[1773267000383,0.01405259,70716.0,70706.0,0.00164]
[1773267000588,0.01405259,70716.0,70706.0,0.0002]
[1773267000589,0.01405259,70714.0,70706.0,0.0002]
[1773267000743,0.04200526,70716.0,70706.0,0.0002]
[1773267000744,0.01405259,70712.0,70706.0,0.0002]
[1773267000955,0.01405259,70710.0,70706.0,0.0002]
[1773267002066,0.00553285,70709.0,70706.0,0.0002]
[1773267002852,0.01405259,70709.0,70706.0,0.0002]
[1773267003053,0.00553285,70708.0,70706.0,0.0002]
[1773267003502,0.00553285,70709.0,70700.0,0.00884]
[1773267003726,0.00553285,70709.0,70700.0,0.00895116]
[1773267004107,0.07624536,70709.0,70700.0,0.00895116]
[1773267004690,0.01405259,70708.0,70700.0,0.00895116]
[1773267005490,0.01405259,70708.0,70698.0,0.00055352]
[1773267005687,0.01416383,70708.0,70698.0,0.00055352]
[1773267005895,0.01405259,70706.0,70698.0,0.00055352]
[1773267006093,0.08476894,70705.0,70698.0,0.00055352]
[1773267006897,0.01405259,70705.0,70698.0,0.00055352]
[1773267008204,0.08476934,70705.0,70698.0,0.00055352]
[1773267008398,0.07071675,70705.0,70698.0,0.00055352]
[1773267009149,0.01405259,70704.0,70698.0,0.00055352]
[1773267010496,0.00697285,70706.0,70698.0,0.00055352]
[1773267010697,0.00011124,70708.0,70698.0,0.07127598]
[1773267011025,0.00022001,70720.0,70700.0,0.0143017]
[1773267011226,0.00022001,70720.0,70702.0,0.0143017]
[1773267011456,0.00022001,70717.0,70704.0,0.0143017]
[1773267012260,0.00022001,70717.0,70706.0,0.0143017]
[1773267012467,0.00022001,70717.0,70707.0,0.07071435]
[1773267012660,0.00022001,70717.0,70708.0,0.0143017]
[1773267013391,0.07091764,70724.0,70708.0,0.0143017]
[1773267013392,0.00022001,70724.0,70708.0,0.0143017]
[1773267013554,0.00022001,70728.0,70708.0,0.0143017]
[1773267014698,0.07091355,70728.0,70710.0,0.0143017]
[1773267014893,0.07091355,70728.0,70712.0,0.0143017]
[1773267015195,0.00022001,70728.0,70712.0,0.0143017]
[1773267015696,0.00022001,70728.0,70714.0,0.0143017]
[1773267016889,0.00022001,70728.0,70715.0,0.07070635]
[1773267017520,0.00022001,70728.0,70716.0,0.00144]
[1773267017916,0.00022001,70728.0,70715.0,0.07070635]
[1773267018143,0.01425689,70726.0,70716.0,0.00144]
[1773267018494,0.01425689,70726.0,70712.0,0.07070919]
[1773267018700,0.01425689,70726.0,70716.0,0.00144]
[1773267019729,0.0144769,70726.0,70716.0,0.00144]
[1773267023390,0.00042431,70726.0,70716.0,0.00144]
[1773267024793,0.00042431,70726.0,70716.0,0.07214512]
[1773267024996,0.00042431,70726.0,70716.0,0.00144]
[1773267027702,0.00042431,70726.0,70700.0,0.00031124]
[1773267027703,0.01453662,70725.0,70700.0,0.00031124]
[1773267027874,0.01453662,70719.0,70702.0,0.01463071]
[1773267028086,0.06453662,70719.0,70703.0,0.01704777]
[1773267028320,0.06453662,70719.0,70703.0,0.01463071]
[1773267029047,0.01453662,70718.0,70716.0,0.0002]
[1773267029703,0.12070237,70719.0,70716.0,0.0002]
[1773267030139,0.00144,70718.0,70716.0,0.0002]
[1773267030306,0.00144,70718.0,70708.0,0.0002]
[1773267032225,0.0721437,70718.0,70708.0,0.0002]
[1773267033678,0.01453662,70717.0,70708.0,0.0002]
[1773267035281,0.08524108,70717.0,70708.0,0.0002]
[1773267036584,0.08542448,70717.0,70708.0,0.0002]
[1773267037268,0.0001834,70717.0,70709.0,0.01463071]
[1773267039487,0.0001834,70717.0,70709.0,0.08534263]
[1773267039927,0.0001834,70717.0,70709.0,0.07071192]
[1773267040222,0.07104563,70726.0,70710.0,0.01463071]
[1773267040223,0.00034941,70726.0,70710.0,0.01463071]
[1773267040427,0.00034941,70726.0,70712.0,0.01471025]
[1773267041639,0.00034941,70726.0,70714.0,0.01471025]
[1773267041843,0.00034941,70726.0,70716.0,0.01471025]
[1773267045416,0.00034941,70726.0,70715.0,0.07214599]
[1773267047809,0.00034941,70726.0,70715.0,0.00144]
[1773267049576,0.05,70722.0,70715.0,0.07214631]
[1773267051996,0.05,70722.0,70715.0,0.07234631]
[1773267064732,0.05,70722.0,70715.0,0.00164]
[1773267066655,0.05,70722.0,70700.0,0.00031124]
[1773267066656,0.01399824,70721.0,70700.0,0.00031124]
[1773267066849,0.01399824,70710.0,70700.0,0.00031124]
[1773267070901,0.01399824,70710.0,70700.0,0.07103255]
[1773267071279,0.01399824,70710.0,70700.0,0.00031124]
[1773267074141,0.01399824,70709.0,70700.0,0.00031124]
[1773267074441,0.01399824,70709.0,70698.0,0.00055352]
[1773267074643,0.01399824,70708.0,70698.0,0.00055352]
[1773267081352,0.01445391,70707.0,70698.0,0.00055352]
[1773267081544,0.01445391,70707.0,70694.0,0.0001867]
[1773267081545,0.01445391,70706.0,70694.0,0.0001867]
[1773267081680,0.01445391,70704.0,70694.0,0.0001867]
[1773267083214,0.01445391,70702.0,70694.0,0.0001867]
[1773267084685,0.01445391,70702.0,70694.0,0.0003867]
[1773267085238,0.01445391,70701.0,70694.0,0.0003867]
[1773267093740,0.11275166,70707.0,70694.0,0.0003867]
[1773267093741,0.00144,70720.0,70696.0,0.00794968]
[1773267093934,0.07070635,70715.0,70696.0,0.00794968]
[1773267094123,0.00062074,70716.0,70698.0,0.00791997]
[1773267094124,0.0713262,70716.0,70698.0,0.00791997]
[1773267094368,0.01445391,70715.0,70699.0,0.07072235]
[1773267094531,0.01445391,70714.0,70699.0,0.07072235]
[1773267095925,0.01445391,70709.0,70694.0,0.0018267]
[1773267096129,0.01445391,70703.0,70694.0,0.0003867]
[1773267096328,0.01445391,70701.0,70694.0,0.0003867]
[1773267102083,0.00144,70704.0,70694.0,0.0003867]
[1773267102492,0.01707884,70704.0,70694.0,0.0003867]
[1773267103023,0.01563884,70703.0,70686.0,0.0002]
[1773267103202,0.01563884,70703.0,70686.0,0.0709349]
[1773267103369,0.25551687,70704.0,70689.0,0.00953857]
[1773267103370,0.1413225,70704.0,70689.0,0.00953857]
[1773267103584,0.00144,70704.0,70691.0,0.00953857]
[1773267105843,0.001,70703.0,70692.0,0.07072936]
[1773267106045,0.001,70703.0,70693.0,0.00144]
[1773267106244,0.00144,70704.0,70693.0,0.00144]
[1773267106572,0.1413225,70709.0,70694.0,0.00943936]
[1773267106937,0.1413225,70711.0,70694.0,0.01068547]
[1773267107074,0.00166001,70715.0,70694.0,0.01068547]
[1773267107721,0.00022001,70715.0,70695.0,0.07072635]
[1773267107919,0.00036731,70722.0,70701.0,0.00940485]
[1773267108158,0.00036731,70722.0,70703.0,0.00937037]
[1773267109094,0.00022001,70715.0,70703.0,0.00937037]
[1773267109962,0.00022001,70715.0,70705.0,0.00949048]
[1773267112433,0.00022001,70715.0,70707.0,0.00942752]
[1773267112651,0.00022001,70715.0,70708.0,0.00144]
[1773267115968,0.00022001,70715.0,70709.0,0.07071235]
[1773267116171,0.00022001,70737.0,70712.0,0.00928795]
[1773267116382,0.01431032,70736.0,70712.0,0.00928795]
[1773267117210,0.01431032,70736.0,70712.0,0.00937935]
[1773267117449,0.01431032,70736.0,70714.0,0.00926081]
[1773267117638,0.01431032,70736.0,70716.0,0.00926081]
[1773267117639,0.00022001,70724.0,70716.0,0.00926081]
[1773267118023,0.00022001,70731.0,70718.0,0.00923204]
[1773267119167,0.00022001,70731.0,70720.0,0.04203695]
[1773267119327,0.00022001,70737.0,70721.0,0.01063888]
[1773267120049,0.00022001,70737.0,70723.0,0.0091641]
[1773267121362,0.00022001,70737.0,70723.0,0.01015682]
[1773267121947,0.00022001,70737.0,70724.0,0.07069735]
[1773267122147,0.00022001,70743.0,70731.0,0.0091022]
[1773267122346,0.00033131,70743.0,70733.0,0.0091022]
[1773267123857,0.01431032,70742.0,70725.0,0.00339243]
[1773267124054,0.01431032,70742.0,70726.0,0.07213535]
[1773267124423,0.01431032,70742.0,70727.0,0.00339233]
[1773267124550,0.01431032,70742.0,70728.0,0.00144]
[1773267124896,0.00022001,70737.0,70729.0,0.00339223]
[1773267127324,0.00022001,70737.0,70730.0,0.07069136]
[1773267127527,0.00022001,70737.0,70731.0,0.00339213]
[1773267128145,0.00033131,70743.0,70731.0,0.00339213]
[1773267129332,0.01464163,70743.0,70732.0,0.07068936]
[1773267136146,0.01464163,70743.0,70732.0,0.05888936]
[1773267141891,0.01506399,70765.0,70733.0,0.00854726]
[1773267142062,0.01489469,70764.0,70741.0,0.00851291]
[1773267142268,0.01489469,70764.0,70744.0,0.07067737]
[1773267142486,0.01633469,70764.0,70745.0,0.00851291]
[1773267142747,0.01489469,70764.0,70745.0,0.00851291]
[1773267143840,0.00037092,70765.0,70745.0,0.00851291]
[1773267144387,0.00037092,70765.0,70747.0,0.01046477]
[1773267144614,0.00037092,70765.0,70749.0,0.01046477]
[1773267144947,0.01526561,70765.0,70749.0,0.01046477]
[1773267146351,0.00022001,70764.0,70749.0,0.01046477]
[1773267146552,0.00022001,70764.0,70750.0,0.07067137]
[1773267149468,0.00022001,70764.0,70750.0,0.07358016]
[1773267149678,0.00022001,70764.0,70751.0,0.01026874]
[1773267150842,0.00022001,70764.0,70752.0,0.00290869]
[1773267151715,0.00022001,70764.0,70753.0,0.07066838]
[1773267152055,0.01489469,70763.0,70754.0,0.00144]
[1773267152404,0.01489469,70763.0,70755.0,0.00278752]
[1773267152750,0.01489469,70763.0,70756.0,0.00144]
[1773267153301,1e-08,70769.0,70757.0,0.00871464]
[1773267153508,0.01502929,70775.0,70756.0,0.00144]
[1773267153509,0.01511439,70787.0,70760.0,0.00871464]
[1773267153708,0.01511439,70787.0,70772.0,0.00871464]
[1773267153946,0.01511439,70787.0,70773.0,0.01015464]
[1773267154120,0.01511439,70787.0,70773.0,0.00144]
[1773267154327,0.0002197,70787.0,70773.0,0.00144]
[1773267154528,0.0002197,70787.0,70774.0,0.00867584]
[1773267155842,0.0002197,70787.0,70776.0,0.0087543]
[1773267156537,0.01489469,70792.0,70776.0,0.0087543]
[1773267157866,0.01489469,70796.0,70778.0,0.00867806]
[1773267158562,0.07061619,70806.0,70777.0,0.07064441]
[1773267158563,0.01511439,70811.0,70781.0,0.00864084]
[1773267158934,0.01489469,70809.0,70781.0,0.00864084]
[1773267159376,0.01489469,70809.0,70779.0,0.00144]
[1773267159377,0.01489469,70809.0,70791.0,0.00860203]
[1773267159584,0.0002197,70811.0,70793.0,0.00860203]
[1773267159754,0.04198559,70830.0,70792.0,0.00144]
[1773267159755,0.02893965,70829.0,70801.0,0.02741082]
[1773267159953,0.01489469,70827.0,70803.0,0.00860203]
[1773267160530,0.00033097,70823.0,70803.0,0.00824886]
[1773267160964,0.01521625,70823.0,70803.0,0.00824886]
[1773267161766,0.01499655,70823.0,70803.0,0.00824886]
[1773267161937,0.01499655,70823.0,70804.0,0.07061747]
[1773267162343,0.01499655,70823.0,70805.0,0.00823893]
[1773267164370,0.01499655,70823.0,70806.0,0.07061548]
[1773267166777,0.00011127,70823.0,70806.0,0.00808491]
[1773267167790,0.00011127,70823.0,70806.0,0.00773183]
[1773267168022,0.00011127,70823.0,70808.0,0.00769348]
[1773267168257,0.00011127,70823.0,70809.0,0.00909545]
[1773267168913,0.00011127,70823.0,70811.0,0.00765545]
[1773267169433,0.00011127,70823.0,70813.0,0.00762013]
[1773267170465,0.00011127,70823.0,70814.0,0.00126203]
[1773267170675,0.00011127,70823.0,70815.0,0.00692865]
[1773267170877,0.00011127,70823.0,70817.0,0.07060451]
[1773267172019,0.00011127,70823.0,70818.0,0.00126195]
[1773267173959,0.00011127,70823.0,70819.0,0.07060252]
[1773267174160,0.00011127,70823.0,70820.0,0.00126191]
[1773267174361,0.00011127,70823.0,70821.0,0.00144]
[1773267174603,0.00033128,70823.0,70822.0,0.00090888]
[1773267175224,0.00033128,70823.0,70822.0,0.00060874]
[1773267175604,1e-08,70831.0,70821.0,0.00673974]
[1773267175804,0.0093355,70850.0,70822.0,0.00529974]
[1773267175805,0.02392423,70850.0,70822.0,0.00529974]
[1773267176067,0.00970606,70850.0,70825.0,0.00526478]
[1773267176659,0.02429479,70850.0,70825.0,0.00526478]
[1773267176829,0.09452599,70862.0,70824.0,0.07059753]
[1773267176830,0.01458873,70864.0,70830.0,0.12568431]
[1773267177026,0.01469987,70864.0,70834.0,0.00533269]
[1773267177274,0.01469987,70864.0,70836.0,0.00533269]
[1773267177475,0.00011114,70864.0,70836.0,0.00533269]
[1773267177709,0.00011114,70864.0,70835.0,0.00144]
[1773267177710,0.03043912,70891.0,70850.0,0.12568431]
[1773267177922,0.00043968,70886.0,70854.0,0.805245]
[1773267178137,0.00043968,70886.0,70858.0,0.00563477]
[1773267178340,0.00043968,70886.0,70857.0,0.07056465]
[1773267178341,0.03043912,70891.0,70860.0,0.00563477]
[1773267178342,0.01458873,70890.0,70860.0,0.00563477]
[1773267178519,0.01458873,70890.0,70862.0,0.00563477]
[1773267179504,0.01458873,70888.0,70863.0,0.00144]
[1773267179707,0.01458873,70888.0,70862.0,0.00563477]
[1773267179910,0.01458873,70888.0,70860.0,0.00011108]
[1773267179911,0.01458873,70888.0,70863.0,0.00144]
[1773267180316,0.01458873,70888.0,70860.0,0.00011108]
[1773267180317,0.12568431,70880.0,70860.0,0.00011108]
[1773267180522,0.01602873,70879.0,70857.0,0.00144]
[1773267180694,0.01602873,70879.0,70855.0,0.00144]
[1773267181088,0.01602873,70879.0,70856.0,0.00655561]
[1773267181293,0.01602873,70879.0,70855.0,0.00144]
[1773267181490,0.01602873,70879.0,70855.0,0.0010871]
[1773267181702,0.01602873,70879.0,70855.0,0.00764271]
[1773267181926,0.01458873,70879.0,70855.0,0.00764271]
[1773267182346,0.01458873,70877.0,70856.0,0.07056565]
[1773267183507,0.01458873,70877.0,70857.0,0.00651022]
[1773267183809,0.03187912,70891.0,70857.0,0.00651022]
[1773267183942,0.00022001,70887.0,70857.0,0.00651022]
[1773267184138,0.01458873,70886.0,70857.0,0.00651022]
[1773267184509,0.01458873,70883.0,70859.0,0.00647105]
[1773267185044,0.01602873,70883.0,70858.0,0.07056366]
[1773267185238,0.01602873,70883.0,70860.0,0.00144]
[1773267186810,0.01458873,70869.0,70839.0,0.07058258]
[1773267187012,0.07053977,70882.0,70847.0,0.00426563]
[1773267187231,0.07053977,70883.0,70847.0,0.00426563]
[1773267187232,0.01458873,70881.0,70848.0,0.00426563]
[1773267187401,0.01458873,70881.0,70851.0,0.303682]
[1773267187612,0.01458873,70881.0,70849.0,0.00426563]
[1773267187812,0.01458873,70881.0,70846.0,0.00144]
[1773267188015,0.01458873,70881.0,70839.0,0.07095327]
[1773267188016,0.01458873,70879.0,70847.0,0.00144]
[1773267188419,0.00035282,70858.0,70848.0,0.001]
[1773267189158,0.00035282,70858.0,70849.0,0.07057262]
[1773267190263,0.00035282,70858.0,70846.0,0.07482776]
[1773267190264,0.00035282,70858.0,70850.0,0.00144]
[1773267190472,0.01458873,70857.0,70850.0,0.00128997]
[1773267190665,0.01458873,70857.0,70851.0,0.00144]
[1773267191159,0.01458873,70857.0,70852.0,0.00144]
[1773267191359,0.01458873,70857.0,70853.0,0.00144]
[1773267191598,0.01458873,70857.0,70843.0,0.07057561]
[1773267191730,0.01458873,70857.0,70844.0,0.00144]
[1773267192129,0.01458873,70857.0,70845.0,0.00144]
[1773267192533,0.01458873,70857.0,70841.0,0.07058059]
[1773267192727,0.01458873,70857.0,70842.0,0.00144]
[1773267193148,0.01458873,70857.0,70843.0,0.0705786]
[1773267193355,0.01458873,70857.0,70844.0,0.00144]
[1773267193560,0.01458873,70857.0,70843.0,0.0705786]
[1773267193561,0.01458873,70857.0,70845.0,0.00144]
[1773267193776,0.0705538,70868.0,70845.0,0.00144]
[1773267193777,0.00022001,70887.0,70846.0,0.0155166]
[1773267193975,0.00022001,70887.0,70845.0,0.00144]
[1773267193976,0.00012,70894.0,70861.0,1.576655]
[1773267194149,0.00012,70894.0,70865.0,1.444839]
[1773267194354,0.00012,70894.0,70868.0,0.0155166]
[1773267194620,0.00012,70894.0,70870.0,0.0155166]
[1773267194760,0.00012,70894.0,70872.0,0.0155166]
[1773267194960,0.00012,70894.0,70874.0,0.0155166]
[1773267195225,0.00012,70894.0,70875.0,0.07054673]
[1773267195412,0.00012,70894.0,70876.0,0.0155166]
[1773267195770,0.0028,70900.0,70876.0,0.0155166]
[1773267196034,0.01458873,70915.0,70876.0,0.0155166]
[1773267196223,0.01507753,70923.0,70882.0,1.203293]
[1773267196369,0.01458873,70922.0,70885.0,0.0155166]
[1773267196711,0.01458873,70922.0,70887.0,0.0155166]
[1773267196918,0.01458873,70922.0,70889.0,0.0155166]
[1773267197129,0.01458873,70922.0,70891.0,0.0155166]
[1773267197330,0.01458873,70918.0,70892.0,0.00144]
[1773267197507,0.01458873,70918.0,70882.0,0.0155166]
[1773267197508,0.01458873,70918.0,70891.0,0.00144]
[1773267197710,0.01458873,70918.0,70884.0,0.07053741]
[1773267197911,0.01458873,70918.0,70885.0,0.00064727]
[1773267198110,0.02657589,70919.0,70886.0,0.0169566]
[1773267198111,0.0014,70917.0,70886.0,0.0169566]
[1773267198289,0.01458873,70916.0,70886.0,0.0169566]
[1773267199074,0.0014,70915.0,70886.0,0.0169566]
[1773267199197,0.01458873,70914.0,70887.0,0.07053479]
[1773267199401,0.01458873,70914.0,70888.0,0.0155166]
[1773267200053,0.0014,70915.0,70887.0,0.07053479]
[1773267200054,0.00015043,70913.0,70887.0,0.07053479]
[1773267200429,0.01535839,70912.0,70887.0,0.07053479]
[1773267200589,0.01535839,70912.0,70888.0,0.00144]
[1773267201506,0.01535839,70910.0,70889.0,0.0705328]
[1773267202686,0.0014,70925.0,70890.0,0.01555283]
[1773267202883,0.00022001,70931.0,70893.0,0.278339]
[1773267203083,0.00022001,70931.0,70902.0,1.25819]
[1773267203084,1e-08,70931.0,70902.0,1.25819]
[1773267203272,1e-08,70931.0,70900.0,0.12525474]
[1773267203273,1e-08,70931.0,70905.0,0.01555283]
[1773267203477,1e-08,70931.0,70907.0,0.07021497]
[1773267203478,0.01535839,70928.0,70907.0,0.07021497]
[1773267203674,0.01535839,70928.0,70908.0,0.00144]
[1773267204083,0.01535839,70928.0,70908.0,0.00129003]
[1773267204412,0.01535839,70928.0,70908.0,0.00166072]
[1773267205018,0.01535839,70928.0,70908.0,0.00130808]
[1773267205600,0.01535839,70926.0,70909.0,0.07051291]
[1773267206354,0.07049501,70927.0,70909.0,0.07051291]
[1773267206548,0.07049501,70927.0,70909.0,0.08606574]
[1773267206754,0.07049501,70927.0,70910.0,0.01555283]
[1773267206953,0.07049501,70927.0,70909.0,0.07051291]
[1773267207155,0.01535839,70926.0,70909.0,0.07051291]
[1773267207773,0.07189501,70930.0,70909.0,0.07051291]
[1773267207774,0.16928,70958.0,70912.0,0.01555283]
[1773267207983,0.21177239,70972.0,70912.0,0.01555283]
[1773267207984,0.02659839,70985.0,70960.0,0.0014]
[1773267208189,0.02659839,70985.0,70948.0,0.00736278]
[1773267208190,0.01124,70985.0,70979.0,0.09656481]
[1773267208408,0.01531839,70984.0,70955.0,0.01753955]
[1773267208607,0.01531839,70984.0,70958.0,0.00144]
[1773267208608,0.01535839,70984.0,70958.0,0.00144]
[1773267208837,0.0014,70983.0,70948.0,0.00736278]
[1773267209003,0.0014,70983.0,70944.0,0.00144]
[1773267209004,0.01535839,70980.0,70944.0,0.00144]
[1773267209214,0.12540469,70970.0,70944.0,0.00177069]
[1773267209511,0.02640678,70979.0,70925.0,9.47e-05]
[1773267209512,0.01535839,70959.0,70925.0,9.47e-05]
[1773267209727,0.00022001,70943.0,70927.0,0.07049501]
[1773267210131,0.00022001,70943.0,70920.0,0.01755627]
[1773267210132,0.12540469,70940.0,70919.0,0.0014]
[1773267210339,0.12540469,70930.0,70904.0,0.07051777]
[1773267210629,0.00144,70939.0,70905.0,0.0014]
[1773267210630,0.01535839,70929.0,70905.0,0.0014]
[1773267210939,0.01535839,70929.0,70905.0,0.00281033]
[1773267211529,0.01535839,70927.0,70905.0,0.00281033]
[1773267211720,0.00035255,70911.0,70906.0,0.07051589]
[1773267212091,0.00035255,70911.0,70904.0,0.00037235]
[1773267212092,0.00035255,70911.0,70907.0,0.00141029]
[1773267212291,0.00035255,70911.0,70900.0,0.0014]
[1773267212483,0.00072396,70911.0,70900.0,0.0014]
[1773267212647,0.00072396,70911.0,70893.0,0.09726422]
[1773267212988,0.00072396,70911.0,70900.0,0.0014]
[1773267213197,0.00072396,70911.0,70893.0,0.09726422]
[1773267213403,0.01535839,70921.0,70900.0,0.0014]
[1773267213606,0.01535839,70934.0,70901.0,0.01555283]
[1773267213753,0.00144,70938.0,70903.0,0.07051887]
[1773267213949,0.00144,70938.0,70904.0,0.01555283]
[1773267213950,0.01535839,70937.0,70904.0,0.01555283]
[1773267214383,0.01679839,70937.0,70904.0,0.01555283]
[1773267215783,0.00144,70936.0,70905.0,0.07051688]
[1773267215990,0.00144,70936.0,70906.0,0.01555283]
[1773267216187,0.00144,70936.0,70907.0,0.01695283]
[1773267216357,0.01535839,70935.0,70907.0,0.01695283]
[1773267216958,0.00022001,70937.0,70910.0,0.12540469]
[1773267217170,0.00022001,70937.0,70913.0,0.01555283]
[1773267217371,0.00022001,70937.0,70915.0,0.01555283]
[1773267217573,0.00022001,70937.0,70916.0,0.0014]
[1773267217853,0.0155784,70937.0,70917.0,0.0014]
[1773267218052,0.0155784,70937.0,70910.0,0.01555283]
[1773267218053,0.0155784,70937.0,70911.0,0.07051092]
[1773267218256,0.01535839,70935.0,70912.0,0.0014]
[1773267218580,0.0015603,70936.0,70911.0,0.07051092]
[1773267218581,0.01535839,70933.0,70913.0,0.00765498]
[1773267218960,0.01535839,70927.0,70913.0,0.00625498]
[1773267219163,0.01535839,70927.0,70914.0,0.0014]
[1773267220424,0.01535839,70927.0,70915.0,0.001]
[1773267220833,0.01535839,70927.0,70914.0,0.0014]
[1773267221260,0.07049534,70927.0,70914.0,0.0014]
[1773267221461,0.01675274,70926.0,70912.0,0.0014]
[1773267223146,0.01675274,70925.0,70912.0,0.0014]
[1773267223533,0.07084703,70928.0,70912.0,0.0014]
[1773267223766,0.08759977,70928.0,70912.0,0.00765425]
[1773267224156,0.07084703,70928.0,70912.0,0.00765425]
[1773267224362,0.01675274,70927.0,70908.0,0.00144]
[1773267224678,0.07384733,70928.0,70904.0,0.00144]
[1773267225405,0.07384733,70928.0,70900.0,0.0041395]
[1773267225406,0.00191276,70928.0,70900.0,0.07233307]
[1773267225759,0.00191276,70928.0,70901.0,0.07043233]
[1773267225760,0.00144,70927.0,70901.0,0.07043233]
[1773267226060,0.0030003,70927.0,70904.0,0.0002]